fUSD/lending_fUSD_20241220
["ID","MTS","AMOUNT","RATE_DAILY","PERIOD"]
[346128858,1734729046626,-713.83,0.00022389,2]
[346128860,1734729046635,-798.2423763,0.00022389,2]
[346128862,1734729046645,-798.2423763,0.00022392,2]
[346128863,1734729046655,-798.2423763,0.00022394,2]
[346128865,1734729046664,-200.0,0.00022394,2]
[346128867,1734729046674,-906.81036702,0.00022395,2]
[346128869,1734729046684,-328.21319173,0.00022396,2]
[346128871,1734729046695,-453.40518351,0.00022399,2]
[346128873,1734729046709,-628.48344515,0.000224,2]
[346128887,1734730028865,154.84,0.00010137,2]
[346128894,1734730166816,18743.21685498,0.00012121,2]
[346128896,1734730199787,9563.34788835,0.00023,120]
[346128911,1734730232342,-500.0,0.00012999,2]
[346128912,1734730232352,-500.0,0.00012999,2]
[346128913,1734730232361,-644.16857514,0.00012999,2]
[346128914,1734730232371,-300.0,0.00012999,2]
[346128915,1734730232380,-7642.85176297,0.00013,2]
[346128916,1734730232401,-137628.91726832,0.00013,2]
[346128917,1734730232412,-5483.58920946,0.00013,2]
[346128918,1734730232423,-960.96,0.00013,2]
[346128919,1734730232460,-785.62130943,0.00013,2]
[346128920,1734730232686,-1723.8461235,0.00013,2]
[346128921,1734730232699,-54392.54878347,0.00013,2]
[346128929,1734730238237,-500.0,0.00013,2]
[346128930,1734730238249,-1000.0,0.00013,2]
[346128931,1734730238300,-31920.41362897,0.00013,2]
[346128932,1734730238314,-2124.3298349,0.00013,2]
[346128946,1734730240258,-861.64145334,0.00013,2]
[346128947,1734730240972,-340.46393394,0.00013,2]
[346128948,1734730240984,-764.96171773,0.00013,2]
[346128949,1734730240996,-957.49,0.00013,2]
[346128950,1734730241007,-1366.56,0.00013,2]
[346128951,1734730241018,-2493.73709782,0.00013,2]
[346128952,1734730241029,-333.58518724,0.00013,2]
[346128953,1734730241040,-959.19,0.00013,2]
[346128954,1734730241068,-1100.817,0.00013,2]
[346128955,1734730241079,-19184.0,0.00013,2]
[346128996,1734730243516,-479.355,0.00013,2]
[346128997,1734730243628,-115960.78293299,0.00013,2]
[346128998,1734730243640,-709.91349074,0.00013,2]
[346129010,1734730246296,-638.64623886,0.00013,2]
[346129011,1734730246466,-184610.27924312,0.00013,2]
[346129012,1734730246476,-176.04,0.00013699,2]
[346129013,1734730246486,-420.0,0.00014256,2]
[346129014,1734730246498,-587.0,0.00015634,2]
[346129015,1734730246508,-1177.43420967,0.000157,2]
[346129016,1734730246518,-186.64,0.00016712,2]
[346129017,1734730246528,-252.67642441,0.00016781,7]
[346129018,1734730246538,-823.0,0.00017145,2]
[346129019,1734730246548,-450.0,0.00017176,2]
[346129020,1734730246558,-221.05709915,0.00017965,2]
[346129021,1734730246568,-154.84,0.00018065,2]
[346129022,1734730246578,-1152.0,0.00018802,2]
[346129023,1734730246588,-7038.02990701,0.000189,2]
[346129024,1734730246599,-841.80555307,0.00019,2]
[346129025,1734730246609,-157.59283733,0.0001997,2]
[346129026,1734730246620,-19346.88672207,0.0001998,2]
[346129027,1734730246629,-473.13141275,0.0002,2]
[346129028,1734730246639,-10502.46365094,0.0002,2]
[346129029,1734730246650,-338.51770865,0.0002,2]
[346129030,1734730246660,-200.0,0.00020014,2]
[346129031,1734730246670,-1613.0,0.0002062,2]
[346129032,1734730246680,-23900.0,0.00020854,2]
[346129033,1734730246690,-198.34201269,0.000209,2]
[346129034,1734730246700,-500.0,0.00020973,2]
[346129035,1734730246710,-150.0,0.00020973,2]
[346129036,1734730246721,-500.0,0.00020973,2]
[346129037,1734730246731,-45495.17463516,0.00021,2]
[346129038,1734730413220,8100.79662157,0.00012121,2]
[346129039,1734731002452,155.47,0.00010137,2]
[346129041,1734731025154,-3000.0,0.00012999,2]
[346129045,1734731204164,480.60431465,0.00021917,30]
[346129055,1734731431504,-4907.25207333,0.00012999,2]
[346129056,1734731431568,-339.624,0.00012999,2]
[346129057,1734731431875,-2253.12392667,0.00012999,2]
[346129058,1734731431884,-1405.97984049,0.00012999,2]
[346129059,1734731431909,-278.06409137,0.00012999,2]
[346129060,1734731431921,-1151.55012815,0.00012999,2]
[346129061,1734731431932,-256.7011023,0.00012999,2]
[346129062,1734731431944,-2762.48129656,0.00012999,2]
[346129063,1734731431956,-864.00000011,0.00012999,2]
[346129064,1734731431967,-781.22354102,0.00012999,2]
[346129065,1734731431976,-450.0,0.00013,2]
[346129066,1734731431987,-500.0,0.00015,2]
[346129067,1734731431998,-550.0,0.00017,2]
[346129068,1734731432008,-155.47,0.00017599,2]
[346129069,1734731432020,-1134.75,0.00017768,2]
[346129070,1734731432030,-150.0,0.00018986,2]
[346129071,1734731432039,-600.0,0.00019,2]
[346129072,1734731432049,-2483.0,0.000195,3]
[346129073,1734731432058,-1000.0,0.00019518,2]
[346129074,1734731432067,-505.96,0.00019529,2]
[346129075,1734731432076,-153.0,0.00019547,2]
[346129076,1734731432085,-153.0,0.00019547,2]
[346129077,1734731432094,-153.0,0.00019547,2]
[346129078,1734731432104,-153.0,0.00019547,2]
[346129079,1734731432114,-153.0,0.00019547,2]
[346129080,1734731432124,-153.0,0.00019547,2]
[346129081,1734731432133,-153.0,0.00019547,2]
[346129082,1734731432142,-153.0,0.00019547,2]
[346129083,1734731432153,-153.0,0.00019547,2]
[346129084,1734731432163,-250.0,0.0001967,2]
[346129085,1734731432172,-19240.99,0.00019705,2]
[346129086,1734731432181,-1796.52773678,0.0002,2]
[346129087,1734731432192,-1134.75,0.00020032,2]
[346129088,1734731432202,-500.0,0.00020225,2]
[346129090,1734731432211,-250.0,0.00020427,2]
[346129091,1734731432220,-971.99,0.0002049,2]
[346129092,1734731432230,-300.0,0.000205,7]
[346129093,1734731432239,-600.0,0.000206,7]
[346129094,1734731432249,-900.0,0.000207,7]
[346129095,1734731432258,-152.74,0.00020764,2]
[346129096,1734731432267,-1200.0,0.000208,7]
[346129097,1734731432279,-160.52622159,0.00020899,2]
[346129098,1734731432289,-1347.73012777,0.00020899,2]
[346129099,1734731432298,-341.7207299,0.00020899,2]
[346129100,1734731432308,-553.99750551,0.00020899,2]
[346129101,1734731432318,-1347.73012774,0.00020899,2]
[346129102,1734731432327,-1347.73012774,0.00020899,2]
[346129103,1734731432336,-1347.73012774,0.00020899,2]
[346129104,1734731432345,-564.19607091,0.00020899,2]
[346129105,1734731432422,-281.28988996,0.00020899,2]
[346129106,1734731437392,-502.24416687,0.00020899,2]
[346129107,1734731437401,-1481.60007187,0.00020899,2]
[346129108,1734731437413,-2993.07122813,0.00020899,2]
[346129109,1734731437422,-1347.73012774,0.000209,2]
[346129110,1734731437431,-1347.73012774,0.000209,2]
[346129111,1734731437440,-1347.73012774,0.000209,2]
[346129112,1734731437449,-1296.98665865,0.000209,2]
[346129113,1734731437460,-50.74346909,0.000209,2]
[346129114,1734731437469,-1347.73012774,0.000209,2]
[346129115,1734731437478,-1500.0,0.000209,7]
[346129116,1734731437487,-2339.61107065,0.000209,2]
[346129117,1734731437497,-456.50838147,0.00020958,2]
[346129118,1734731437507,-4810.33698345,0.00020959,2]
[346129119,1734731437519,-14644.66301655,0.00020959,2]
[346129120,1734731437530,-157.59283735,0.00020989,2]
[346129121,1734731437542,-666.0,0.00020998,2]
[346129122,1734731437552,-300.0,0.00020998,2]
[346129123,1734731437561,-1021.36706913,0.00020999,5]
[346129124,1734731437570,-7500.0,0.00020999,2]
[346129125,1734731437579,-7500.0,0.00020999,2]
[346129126,1734731437588,-7500.0,0.00020999,2]
[346129127,1734731437598,-3235.86003124,0.00020999,2]
[346129128,1734731437607,-512.54952815,0.00020999,2]
[346129129,1734731437616,-4013998.89255037,0.00021,3]
[346129130,1734731437626,-11503.07404542,0.00021,3]
[346129131,1734731437635,-2096701.24082126,0.00021,2]
[346129132,1734731437645,-6024.87476904,0.00021,2]
[346129133,1734731437654,-1141.88179926,0.00021,2]
[346129134,1734731437664,-188.41702655,0.00021,2]
[346129135,1734731437673,-650.0,0.00021,2]
[346129136,1734731437682,-252.3,0.00021,2]
[346129137,1734731437691,-1588.70982,0.00021,2]
[346129138,1734731437700,-500.0,0.00021064,2]
[346129139,1734731437710,-436.58,0.00021123,2]
[346129140,1734731437719,-999.0,0.00021369,2]
[346129141,1734731437728,-150.0,0.00021403,4]
[346129142,1734731437737,-150.0,0.00021403,4]
[346129143,1734731437746,-150.0,0.00021403,4]
[346129144,1734731437755,-160.52622159,0.00021499,2]
[346129145,1734731437764,-250.61927491,0.00021708,2]
[346129146,1734731437774,-500.0,0.00021708,2]
[346129147,1734731437784,-152.74,0.00021802,2]
[346129148,1734731437793,-250.0,0.00021871,2]
[346129149,1734731437802,-151.976842,0.00021917,4]
[346129150,1734731437811,-500.0,0.00021917,2]
[346129151,1734731437820,-500.0,0.00021917,4]
[346129152,1734731437830,-500.0,0.00021917,4]
[346129153,1734731437839,-500.0,0.00021917,4]
[346129154,1734731437848,-500.0,0.00021917,4]
[346129155,1734731437858,-500.0,0.00021917,4]
[346129156,1734731437867,-500.0,0.00021917,4]
[346129157,1734731437876,-659.09,0.00021917,4]
[346129158,1734731437885,-500.0,0.00021917,4]
[346129159,1734731437895,-599.76,0.00021917,4]
[346129160,1734731437904,-500.0,0.00021917,4]
[346129161,1734731437913,-509.36,0.00021917,4]
[346129162,1734731437923,-293.80367372,0.00021917,2]
[346129163,1734731437932,-500.0,0.00021917,4]
[346129165,1734731437942,-514.94064972,0.00021917,4]
[346129167,1734731437951,-500.0,0.00021917,4]
[346129169,1734731437960,-1076.36223533,0.00021917,4]
[346129171,1734731437969,-500.0,0.00021917,4]
[346129172,1734731437978,-500.0,0.00021917,4]
[346129174,1734731437987,-500.0,0.00021917,4]
[346129176,1734731437996,-640.38,0.00021917,4]
[346129178,1734731438006,-500.0,0.00021917,4]
[346129180,1734731438015,-500.0,0.00021917,4]
[346129182,1734731438025,-500.0,0.00021917,4]
[346129184,1734731438034,-294.02259569,0.00021917,4]
[346129186,1734731438043,-423.12,0.00021917,4]
[346129188,1734731438053,-500.0,0.00021917,4]
[346129190,1734731438062,-500.0,0.00021917,4]
[346129192,1734731438071,-500.0,0.00021917,4]
[346129194,1734731438080,-298.48157386,0.00021917,4]
[346129196,1734731438089,-559.35398133,0.00021917,4]
[346129198,1734731438098,-712.86,0.00021917,4]
[346129200,1734731438109,-500.0,0.00021917,4]
[346129202,1734731438119,-500.0,0.00021917,4]
[346129204,1734731438128,-500.0,0.00021917,4]
[346129206,1734731438138,-500.0,0.00021917,4]
[346129208,1734731438148,-614.47,0.00021917,4]
[346129210,1734731438157,-500.0,0.00021917,4]
[346129212,1734731438166,-500.0,0.00021917,4]
[346129214,1734731438175,-500.0,0.00021917,4]
[346129215,1734731438184,-1660.521267,0.00021917,4]
[346129218,1734731438193,-500.0,0.00021917,4]
[346129219,1734731438203,-886.39,0.00021917,4]
[346129221,1734731438212,-500.0,0.00021917,4]
[346129224,1734731438221,-500.0,0.00021917,4]
[346129225,1734731438231,-500.0,0.00021917,4]
[346129227,1734731438240,-500.0,0.00021917,4]
[346129229,1734731438249,-615.71,0.00021917,4]
[346129231,1734731438258,-500.0,0.00021917,4]
[346129234,1734731438268,-714.53,0.00021917,4]
[346129235,1734731438278,-500.0,0.00021917,4]
[346129238,1734731438287,-500.0,0.00021917,4]
[346129239,1734731438296,-284.60632374,0.00021917,4]
[346129241,1734731438307,-500.0,0.00021917,4]
[346129244,1734731438317,-500.0,0.00021917,4]
[346129245,1734731438326,-500.0,0.00021917,4]
[346129247,1734731438335,-188.785568,0.00021917,4]
[346129249,1734731438344,-1100.592665,0.00021917,4]
[346129251,1734731438353,-500.0,0.00021917,4]
[346129253,1734731438362,-500.0,0.00021917,4]
[346129255,1734731438371,-500.0,0.00021917,4]
[346129257,1734731438381,-500.0,0.00021917,4]
[346129259,1734731438390,-500.0,0.00021917,4]
[346129261,1734731438399,-500.0,0.00021917,4]
[346129263,1734731438409,-500.0,0.00021917,4]
[346129265,1734731438418,-500.0,0.00021917,4]
[346129267,1734731438427,-500.0,0.00021917,4]
[346129268,1734731438436,-500.0,0.00021917,4]
[346129270,1734731438445,-500.0,0.00021917,4]
[346129271,1734731438454,-500.0,0.00021917,4]
[346129273,1734731438464,-667.58,0.00021917,4]
[346129274,1734731438474,-500.0,0.00021917,4]
[346129276,1734731438484,-500.0,0.00021917,4]
[346129278,1734731438493,-500.0,0.00021917,4]
[346129279,1734731438503,-500.0,0.00021917,4]
[346129280,1734731438512,-500.0,0.00021917,4]
[346129282,1734731438521,-500.0,0.00021917,4]
[346129284,1734731438531,-590.89,0.00021917,4]
[346129285,1734731438540,-500.0,0.00021917,4]
[346129287,1734731438549,-500.0,0.00021917,4]
[346129288,1734731438558,-500.0,0.00021917,4]
[346129290,1734731438567,-500.0,0.00021917,4]
[346129291,1734731438576,-500.0,0.00021917,4]
[346129293,1734731438585,-500.0,0.00021917,4]
[346129295,1734731438594,-500.0,0.00021917,4]
[346129296,1734731438603,-500.0,0.00021917,4]
[346129298,1734731438611,-1161.84,0.00021917,4]
[346129299,1734731438621,-831.41,0.00021917,4]
[346129300,1734731438629,-894.82,0.00021917,4]
[346129302,1734731438639,-500.0,0.00021917,4]
[346129304,1734731438647,-500.0,0.00021917,4]
[346129305,1734731438656,-500.0,0.00021917,4]
[346129307,1734731438665,-500.0,0.00021917,4]
[346129308,1734731438674,-502.37288747,0.00021917,4]
[346129310,1734731438683,-500.0,0.00021917,4]
[346129312,1734731438692,-500.0,0.00021917,4]
[346129313,1734731438702,-500.0,0.00021917,4]
[346129315,1734731438711,-500.0,0.00021917,4]
[346129317,1734731438720,-500.0,0.00021917,4]
[346129318,1734731438730,-500.0,0.00021917,4]
[346129320,1734731438739,-500.0,0.00021917,4]
[346129321,1734731438747,-500.0,0.00021917,4]
[346129323,1734731438757,-500.0,0.00021917,4]
[346129325,1734731438766,-463.03586148,0.00021917,4]
[346129326,1734731438776,-500.0,0.00021917,4]
[346129328,1734731438785,-500.0,0.00021917,4]
[346129330,1734731438794,-500.0,0.00021917,4]
[346129331,1734731438803,-500.0,0.00021917,4]
[346129333,1734731438812,-158.690803,0.00021917,4]
[346129335,1734731438821,-2761.33,0.00021917,4]
[346129336,1734731438830,-500.0,0.00021917,4]
[346129338,1734731438839,-500.0,0.00021917,4]
[346129339,1734731438848,-500.0,0.00021917,4]
[346129341,1734731438858,-274.18831,0.00021917,4]
[346129343,1734731438867,-500.0,0.00021917,4]
[346129344,1734731438876,-500.0,0.00021917,4]
[346129346,1734731438885,-500.0,0.00021917,4]
[346129348,1734731438896,-500.0,0.00021917,4]
[346129349,1734731438905,-596.92127984,0.00021917,4]
[346129351,1734731438914,-500.0,0.00021917,4]
[346129353,1734731438923,-500.0,0.00021917,4]
[346129354,1734731438932,-500.0,0.00021917,4]
[346129355,1734731438941,-766.33,0.00021917,4]
[346129356,1734731438950,-500.0,0.00021917,4]
[346129357,1734731438960,-500.0,0.00021917,4]
[346129358,1734731438969,-500.0,0.00021917,4]
[346129359,1734731438978,-500.0,0.00021917,4]
[346129360,1734731438988,-500.0,0.00021917,4]
[346129361,1734731438997,-500.0,0.00021917,4]
[346129362,1734731439006,-500.0,0.00021917,4]
[346129363,1734731439015,-500.0,0.00021917,4]
[346129364,1734731439024,-500.0,0.00021917,4]
[346129365,1734731439035,-500.0,0.00021917,4]
[346129366,1734731439044,-500.0,0.00021917,4]
[346129367,1734731439054,-500.0,0.00021917,4]
[346129368,1734731439063,-491.71464839,0.00021917,4]
[346129369,1734731439072,-596.51378795,0.00021917,4]
[346129370,1734731439081,-500.0,0.00021917,4]
[346129371,1734731439090,-500.0,0.00021917,4]
[346129372,1734731439099,-500.0,0.00021917,4]
[346129373,1734731439112,-500.0,0.00021917,4]
[346129374,1734731439121,-500.28982782,0.00021917,4]
[346129375,1734731439131,-500.0,0.00021917,4]
[346129376,1734731439140,-500.0,0.00021917,4]
[346129377,1734731439150,-794.159369,0.00021917,4]
[346129378,1734731439159,-500.0,0.00021917,4]
[346129379,1734731439168,-500.0,0.00021917,4]
[346129380,1734731439179,-500.0,0.00021917,4]
[346129382,1734731439189,-500.0,0.00021917,4]
[346129383,1734731439198,-500.0,0.00021917,4]
[346129384,1734731439207,-500.0,0.00021917,4]
[346129385,1734731439217,-187.42942432,0.00021917,4]
[346129386,1734731439226,-181.99455937,0.00021917,4]
[346129387,1734731439235,-500.0,0.00021917,4]
[346129388,1734731439245,-500.0,0.00021917,4]
[346129389,1734731439255,-500.0,0.00021917,4]
[346129390,1734731439264,-611.7,0.00021917,4]
[346129391,1734731439274,-500.0,0.00021917,4]
[346129392,1734731439285,-500.0,0.00021917,4]
[346129393,1734731439294,-500.0,0.00021917,4]
[346129394,1734731439303,-500.0,0.00021917,4]
[346129395,1734731439312,-500.0,0.00021917,4]
[346129396,1734731439321,-500.0,0.00021917,4]
[346129397,1734731439330,-2626.45,0.00021917,4]
[346129398,1734731439339,-500.0,0.00021917,4]
[346129399,1734731439348,-500.0,0.00021917,4]
[346129400,1734731439356,-500.0,0.00021917,4]
[346129401,1734731439365,-500.0,0.00021917,4]
[346129402,1734731439375,-500.0,0.00021917,4]
[346129403,1734731439384,-500.0,0.00021917,4]
[346129404,1734731439393,-500.0,0.00021917,4]
[346129405,1734731439401,-500.0,0.00021917,4]
[346129406,1734731439410,-500.0,0.00021917,4]
[346129407,1734731439420,-500.0,0.00021917,4]
[346129408,1734731439429,-500.0,0.00021917,4]
[346129409,1734731439438,-500.0,0.00021917,4]
[346129410,1734731439447,-500.0,0.00021917,4]
[346129411,1734731439456,-500.0,0.00021917,4]
[346129412,1734731439465,-500.0,0.00021917,4]
[346129413,1734731439474,-500.0,0.00021917,4]
[346129414,1734731439483,-500.0,0.00021917,4]
[346129415,1734731439492,-500.0,0.00021917,4]
[346129416,1734731439501,-500.0,0.00021917,4]
[346129417,1734731439511,-500.0,0.00021917,4]
[346129418,1734731439520,-500.0,0.00021917,4]
[346129419,1734731439530,-500.0,0.00021917,4]
[346129420,1734731439539,-500.0,0.00021917,4]
[346129421,1734731439548,-500.0,0.00021917,4]
[346129422,1734731439557,-500.0,0.00021917,4]
[346129423,1734731439567,-500.0,0.00021917,4]
[346129424,1734731439576,-500.0,0.00021917,4]
[346129425,1734731439585,-500.0,0.00021917,4]
[346129426,1734731439594,-500.0,0.00021917,4]
[346129427,1734731439603,-500.0,0.00021917,4]
[346129428,1734731439612,-500.0,0.00021917,4]
[346129429,1734731439620,-500.0,0.00021917,4]
[346129430,1734731439629,-500.0,0.00021917,4]
[346129431,1734731439638,-500.0,0.00021917,4]
[346129432,1734731439647,-611.89,0.00021917,4]
[346129433,1734731439656,-500.0,0.00021917,4]
[346129434,1734731439665,-500.0,0.00021917,4]
[346129435,1734731439674,-500.0,0.00021917,4]
[346129436,1734731439683,-500.0,0.00021917,4]
[346129437,1734731439692,-500.0,0.00021917,4]
[346129438,1734731439701,-500.0,0.00021917,4]
[346129439,1734731439711,-500.0,0.00021917,4]
[346129440,1734731439720,-500.0,0.00021917,4]
[346129441,1734731439729,-500.0,0.00021917,4]
[346129442,1734731439738,-500.0,0.00021917,4]
[346129443,1734731439747,-359.1631527,0.00021917,4]
[346129444,1734731439756,-500.0,0.00021917,4]
[346129445,1734731439765,-500.0,0.00021917,4]
[346129446,1734731439774,-500.0,0.00021917,4]
[346129447,1734731439784,-500.0,0.00021917,4]
[346129448,1734731439794,-500.0,0.00021917,4]
[346129449,1734731439803,-1588.70982,0.0002193,2]
[346129450,1734731439965,-1000.0,0.00021958,2]
[346129451,1734731439974,-505.96,0.0002197,2]
[346129452,1734731439984,-11961.2845853,0.0002209,2]
[346129453,1734731439993,-200.0,0.00022091,2]
[346129454,1734731440002,-160.52622159,0.00022099,2]
[346129455,1734731440011,-831.56240036,0.00022149,2]
[346129456,1734731440020,-164.9,0.00022189,2]
[346129457,1734731440031,-164.86,0.00022191,2]
[346129458,1734731440040,-269.51,0.00022191,4]
[346129459,1734731440049,-500.0,0.00022191,4]
[346129460,1734731440059,-529.66,0.00022191,4]
[346129461,1734731440069,-224.55,0.00022191,4]
[346129462,1734731440078,-659.09,0.00022191,4]
[346129463,1734731440088,-500.0,0.00022191,4]
[346129464,1734731440097,-500.0,0.00022191,4]
[346129465,1734731440108,-500.0,0.00022191,4]
[346129466,1734731440119,-500.0,0.00022191,4]
[346129467,1734731440128,-500.0,0.00022191,4]
[346129468,1734731440138,-632.81,0.00022191,4]
[346129469,1734731440147,-500.0,0.00022191,4]
[346129470,1734731440156,-712.86,0.00022191,4]
[346129471,1734731440165,-500.0,0.00022191,4]
[346129472,1734731440175,-226.17661355,0.00022191,4]
[346129473,1734731440185,-500.0,0.00022191,4]
[346129474,1734731440194,-614.47,0.00022191,4]
[346129475,1734731440203,-500.0,0.00022191,4]
[346129476,1734731440213,-1660.521267,0.00022191,4]
[346129477,1734731440222,-886.39,0.00022191,4]
[346129478,1734731440231,-714.53,0.00022191,4]
[346129479,1734731440240,-188.785568,0.00022191,4]
[346129480,1734731440250,-1100.592665,0.00022191,4]
[346129481,1734731440259,-500.0,0.00022191,4]
[346129482,1734731440268,-500.0,0.00022191,4]
[346129483,1734731440278,-500.94,0.00022191,4]
[346129484,1734731440290,-500.0,0.00022191,4]
[346129485,1734731440299,-500.0,0.00022191,4]
[346129486,1734731440310,-602.06,0.00022191,4]
[346129487,1734731440319,-667.58,0.00022191,4]
[346129488,1734731440328,-500.0,0.00022191,4]
[346129489,1734731440337,-500.0,0.00022191,4]
[346129490,1734731440346,-515.27193783,0.00022191,4]
[346129491,1734731440355,-590.89,0.00022191,4]
[346129492,1734731440364,-500.0,0.00022191,4]
[346129493,1734731440373,-500.0,0.00022191,4]
[346129494,1734731440382,-1161.84,0.00022191,4]
[346129495,1734731440391,-831.41,0.00022191,4]
[346129496,1734731440400,-894.82,0.00022191,4]
[346129497,1734731440409,-500.0,0.00022191,4]
[346129498,1734731440419,-290.02419069,0.00022191,4]
[346129499,1734731440428,-557.24,0.00022191,4]
[346129500,1734731440436,-481.22,0.00022191,4]
[346129501,1734731440446,-527.93,0.00022191,4]
[346129502,1734731440455,-500.0,0.00022191,4]
[346129503,1734731440463,-500.0,0.00022191,4]
[346129504,1734731440472,-500.0,0.00022191,4]
[346129505,1734731440481,-500.0,0.00022191,4]
[346129506,1734731440490,-171.98096501,0.00022191,4]
[346129507,1734731440499,-500.0,0.00022191,4]
[346129508,1734731440508,-500.0,0.00022191,4]
[346129509,1734731440517,-2761.33,0.00022191,4]
[346129510,1734731440526,-500.0,0.00022191,4]
[346129511,1734731440536,-500.0,0.00022191,4]
[346129512,1734731440545,-620.38,0.00022191,4]
[346129513,1734731440554,-274.18831,0.00022191,4]
[346129514,1734731440563,-500.0,0.00022191,4]
[346129515,1734731440572,-500.0,0.00022191,4]
[346129516,1734731440581,-766.33,0.00022191,4]
[346129517,1734731440590,-500.0,0.00022191,4]
[346129518,1734731440599,-500.0,0.00022191,4]
[346129519,1734731440607,-579.7,0.00022191,4]
[346129520,1734731440617,-500.0,0.00022191,4]
[346129521,1734731440626,-500.0,0.00022191,4]
[346129522,1734731440635,-500.0,0.00022191,4]
[346129523,1734731440643,-500.0,0.00022191,4]
[346129524,1734731440653,-500.0,0.00022191,4]
[346129525,1734731440662,-794.159369,0.00022191,4]
[346129526,1734731440671,-500.0,0.00022191,4]
[346129527,1734731440679,-500.0,0.00022191,4]
[346129528,1734731440688,-500.0,0.00022191,4]
[346129529,1734731440697,-500.0,0.00022191,4]
[346129530,1734731440706,-500.0,0.00022191,4]
[346129531,1734731440715,-500.0,0.00022191,4]
[346129532,1734731440724,-500.0,0.00022191,4]
[346129533,1734731440734,-500.0,0.00022191,4]
[346129534,1734731440744,-500.0,0.00022191,4]
[346129535,1734731440753,-500.0,0.00022191,4]
[346129536,1734731440762,-500.0,0.00022191,4]
[346129537,1734731440771,-528.94,0.00022191,4]
[346129538,1734731440781,-2626.45,0.00022191,4]
[346129539,1734731440790,-500.0,0.00022191,4]
[346129540,1734731440799,-500.0,0.00022191,4]
[346129541,1734731440808,-394.14,0.00022191,4]
[346129542,1734731440817,-500.0,0.00022191,4]
[346129543,1734731440827,-500.0,0.00022191,4]
[346129544,1734731440836,-500.0,0.00022191,4]
[346129545,1734731440845,-475.38,0.00022191,4]
[346129546,1734731440854,-500.0,0.00022191,4]
[346129547,1734731440864,-500.0,0.00022191,4]
[346129548,1734731440873,-500.0,0.00022191,4]
[346129549,1734731440883,-575.81,0.00022191,4]
[346129550,1734731440892,-500.0,0.00022191,4]
[346129551,1734731440901,-540.65,0.00022191,4]
[346129552,1734731440911,-500.0,0.00022191,4]
[346129553,1734731440920,-309.23,0.00022191,4]
[346129554,1734731440929,-434.91,0.00022191,4]
[346129555,1734731440939,-500.0,0.00022191,4]
[346129556,1734731440948,-500.0,0.00022191,4]
[346129557,1734731440958,-500.0,0.00022191,4]
[346129558,1734731440967,-192.01,0.00022191,4]
[346129559,1734731440976,-543.9,0.00022191,4]
[346129560,1734731440986,-500.0,0.00022191,4]
[346129561,1734731440995,-500.0,0.00022191,4]
[346129562,1734731441004,-500.0,0.00022191,4]
[346129563,1734731441014,-500.0,0.00022191,4]
[346129564,1734731441023,-500.0,0.00022191,4]
[346129565,1734731441035,-546.38,0.00022191,4]
[346129566,1734731441044,-545.79,0.00022191,4]
[346129567,1734731441053,-500.0,0.00022191,4]